fUST/lending_fUST_20240612
["ID","MTS","AMOUNT","RATE_DAILY","PERIOD"]
[329170869,1718149856098,-500.0,0.00019452,2]
[329170870,1718149856108,-500.0,0.00019452,2]
[329170871,1718149856121,-500.0,0.00019452,2]
[329170872,1718149856131,-500.0,0.00019452,2]
[329170873,1718149856142,-500.0,0.00019452,2]
[329170874,1718149856152,-500.0,0.00019452,2]
[329170875,1718149856163,-500.0,0.00019452,2]
[329170876,1718149856174,-348.23368899,0.00019452,2]
[329170877,1718149856184,-500.0,0.00019452,2]
[329170878,1718149856197,-500.0,0.00019452,2]
[329170879,1718149856208,-500.0,0.00019452,2]
[329170880,1718149856219,-500.0,0.00019452,2]
[329170881,1718149856229,-500.0,0.00019452,2]
[329170882,1718149856241,-1767.63,0.00019452,2]
[329170883,1718149856251,-500.0,0.00019452,2]
[329170884,1718149856262,-3051.19,0.00019452,2]
[329170885,1718149856272,-500.0,0.00019452,2]
[329170886,1718149856282,-500.0,0.00019452,2]
[329170887,1718149856294,-500.0,0.00019452,2]
[329170888,1718149856304,-682.54,0.00019452,2]
[329170889,1718149856316,-377.72250407,0.00019452,2]
[329170890,1718149856326,-500.0,0.00019452,2]
[329170891,1718149856339,-500.0,0.00019452,2]
[329170892,1718149856350,-500.0,0.00019452,2]
[329170893,1718149856360,-500.0,0.00019452,2]
[329170894,1718149856370,-500.0,0.00019452,2]
[329170895,1718149856381,-1176.44,0.00019452,2]
[329170896,1718149856391,-166.51016875,0.00019452,2]
[329170897,1718149856402,-500.0,0.00019452,2]
[329170898,1718149856412,-500.0,0.00019452,2]
[329170899,1718149856422,-500.0,0.00019452,2]
[329170900,1718149856433,-500.0,0.00019452,2]
[329170901,1718149856444,-500.0,0.00019452,2]
[329170902,1718149856454,-308.49621916,0.00019452,2]
[329170903,1718149856465,-753.49,0.00019452,2]
[329170904,1718149856475,-500.0,0.00019452,2]
[329170905,1718149856485,-500.0,0.00019452,2]
[329170906,1718149856496,-500.0,0.00019452,2]
[329170907,1718149856507,-500.0,0.00019452,2]
[329170908,1718149856518,-500.0,0.00019452,2]
[329170909,1718149856529,-500.0,0.00019452,2]
[329170910,1718149856540,-792.01,0.00019452,2]
[329170911,1718149856551,-500.0,0.00019452,2]
[329170912,1718149856561,-500.0,0.00019452,2]
[329170913,1718149856572,-602.96908345,0.00019452,2]
[329170914,1718149856582,-338.77898527,0.00019452,2]
[329170915,1718149856592,-500.0,0.00019452,2]
[329170916,1718149856603,-208.681369,0.00019452,2]
[329170917,1718149856613,-500.0,0.00019452,2]
[329170918,1718149856623,-500.0,0.00019452,2]
[329170919,1718149856634,-500.0,0.00019452,2]
[329170920,1718149856644,-570.11045282,0.00019452,2]
[329170921,1718149856656,-500.0,0.00019452,2]
[329170922,1718149856666,-500.0,0.00019452,2]
[329170923,1718149856677,-500.0,0.00019452,2]
[329170924,1718149856687,-508.08141572,0.00019452,2]
[329170925,1718149856699,-500.0,0.00019452,2]
[329170926,1718149856710,-500.0,0.00019452,2]
[329170927,1718149856720,-500.0,0.00019452,2]
[329170928,1718149856731,-375.6181802,0.00019452,2]
[329170929,1718149856744,-8203.17,0.00019452,2]
[329170930,1718149856756,-500.0,0.00019452,2]
[329170931,1718149856767,-500.0,0.00019452,2]
[329170932,1718149856779,-500.0,0.00019452,2]
[329170933,1718149856790,-500.0,0.00019452,2]
[329170934,1718149856800,-500.0,0.00019452,2]
[329170935,1718149856810,-500.0,0.00019452,2]
[329170936,1718149856821,-500.0,0.00019452,2]
[329170937,1718149856831,-500.0,0.00019452,2]
[329170938,1718149856842,-500.0,0.00019452,2]
[329170939,1718149856859,-500.0,0.00019452,2]
[329170940,1718149856870,-500.0,0.00019452,2]
[329170941,1718149856881,-500.0,0.00019452,2]
[329170942,1718149856891,-3323.44,0.00019452,2]
[329170943,1718149856901,-500.0,0.00019452,2]
[329170944,1718149856911,-1691.275542,0.00019452,2]
[329170945,1718149856921,-500.0,0.00019452,2]
[329170946,1718149856941,-500.0,0.00019452,2]
[329170947,1718149856958,-1691.275542,0.00019452,2]
[329170948,1718149856968,-500.0,0.00019452,2]
[329170949,1718149856979,-1661.26,0.00019452,2]
[329170950,1718149856989,-500.0,0.00019452,2]
[329170951,1718149857000,-500.0,0.00019452,2]
[329170952,1718149857010,-500.0,0.00019452,2]
[329170953,1718149857020,-500.0,0.00019452,2]
[329170954,1718149857031,-500.0,0.00019452,2]
[329170955,1718149857041,-500.0,0.00019452,2]
[329170956,1718149857051,-151.0,0.00019452,2]
[329170957,1718149857061,-500.0,0.00019452,2]
[329170958,1718149857071,-151.0,0.00019452,2]
[329170959,1718149857084,-1895.49,0.00019452,2]
[329170960,1718149857096,-500.0,0.00019452,2]
[329170961,1718149857118,-568.57,0.00019452,2]
[329170962,1718149857128,-7722.81,0.00019452,2]
[329170963,1718149857139,-500.0,0.00019452,2]
[329170964,1718149857149,-500.0,0.00019452,2]
[329170965,1718149857162,-500.0,0.00019452,2]
[329170966,1718149857173,-500.0,0.00019452,2]
[329170967,1718149857183,-500.0,0.00019452,2]
[329170968,1718149857197,-500.0,0.00019452,2]
[329170969,1718149857209,-505.57692972,0.00019452,2]
[329170970,1718149857220,-262.72485685,0.00019452,2]
[329170971,1718149857230,-559.76434657,0.00019452,2]
[329170972,1718149857240,-500.0,0.00019452,2]
[329170973,1718149857250,-585.97,0.00019452,2]
[329170974,1718149857260,-500.0,0.00019452,2]
[329170975,1718149857270,-158.88348,0.00019452,2]
[329170976,1718149857280,-500.0,0.00019452,2]
[329170977,1718149857290,-500.0,0.00019452,2]
[329170978,1718149857300,-500.0,0.00019452,2]
[329170979,1718149857310,-500.0,0.00019452,2]
[329170980,1718149857320,-500.0,0.00019452,2]
[329170981,1718149857330,-246.8660544,0.00019452,2]
[329170982,1718149857341,-500.0,0.00019452,2]
[329170983,1718149857350,-500.0,0.00019452,2]
[329170984,1718149857360,-500.0,0.00019452,2]
[329170985,1718149857374,-151.0,0.00019452,2]
[329170986,1718149857384,-500.0,0.00019452,2]
[329170987,1718149857394,-500.0,0.00019452,2]
[329170988,1718149857404,-500.0,0.00019452,2]
[329170989,1718149857414,-500.0,0.00019452,2]
[329170990,1718149857424,-500.0,0.00019452,2]
[329170991,1718149857434,-500.0,0.00019452,2]
[329170992,1718149857444,-500.0,0.00019452,2]
[329170993,1718149857454,-151.0,0.00019452,2]
[329170994,1718149857464,-500.0,0.00019452,2]
[329170995,1718149857474,-500.0,0.00019452,2]
[329170996,1718149857484,-500.0,0.00019452,2]
[329170997,1718149857494,-500.0,0.00019452,2]
[329170998,1718149857504,-500.0,0.00019452,2]
[329170999,1718149857514,-151.0,0.00019452,2]
[329171000,1718149857524,-219.79078929,0.00019452,2]
[329171001,1718149857534,-211.3429559,0.00019452,2]
[329171002,1718149857545,-500.0,0.00019452,2]
[329171003,1718149857555,-500.0,0.00019452,2]
[329171004,1718149857566,-533.05,0.00019452,2]
[329171005,1718149857576,-1445.62,0.00019452,2]
[329171006,1718149857586,-257.87376567,0.00019452,2]
[329171007,1718149857596,-638.04,0.00019452,2]
[329171008,1718149857606,-500.0,0.00019452,2]
[329171009,1718149857616,-500.0,0.00019452,2]
[329171010,1718149857626,-500.0,0.00019452,2]
[329171011,1718149857636,-500.0,0.00019452,2]
[329171012,1718149857647,-151.0,0.00019452,2]
[329171013,1718149857657,-151.0,0.00019452,2]
[329171014,1718149857667,-500.0,0.00019452,2]
[329171015,1718149857678,-500.0,0.00019452,2]
[329171016,1718149857688,-500.0,0.00019452,2]
[329171017,1718149857699,-1016.926176,0.00019452,2]
[329171018,1718149857710,-500.0,0.00019452,2]
[329171019,1718149857720,-500.0,0.00019452,2]
[329171020,1718149857730,-500.0,0.00019452,2]
[329171021,1718149857741,-500.0,0.00019452,2]
[329171022,1718149857752,-151.0,0.00019452,2]
[329171023,1718149857762,-500.0,0.00019452,2]
[329171024,1718149857773,-500.0,0.00019452,2]
[329171025,1718149857784,-500.0,0.00019452,2]
[329171026,1718149857796,-1016.926176,0.00019452,2]
[329171027,1718149857807,-1124.57,0.00019452,2]
[329171028,1718149857817,-151.0,0.00019452,2]
[329171029,1718149857828,-500.0,0.00019452,2]
[329171030,1718149857838,-6007.54,0.00019452,2]
[329171031,1718149857849,-416.9,0.00019452,2]
[329171032,1718149857860,-662.52368812,0.00019472,2]
[329171033,1718149857872,-1000.0,0.000195,2]
[329171034,1718149857883,-500.0,0.00019724,2]
[329171035,1718149857894,-500.0,0.00019724,2]
[329171036,1718149857906,-151.0,0.00019725,2]
[329171037,1718149857917,-500.0,0.00019725,2]
[329171038,1718149857927,-500.0,0.00019725,2]
[329171039,1718149857951,-500.0,0.00019725,2]
[329171040,1718149857963,-167.783244,0.00019725,2]
[329171041,1718149857973,-167.783244,0.00019725,2]
[329171042,1718149857984,-4711.64,0.00019725,2]
[329171043,1718149857995,-4711.64,0.00019725,2]
[329171044,1718149858005,-4711.64,0.00019725,2]
[329171045,1718149858016,-36288.4547041,0.00019726,13]
[329171046,1718149858026,-500.0,0.00019726,2]
[329171047,1718149858037,-440.54878529,0.00019726,2]
[329171048,1718149858049,-638.32,0.00019726,2]
[329171049,1718149858058,-443.05006874,0.00019726,2]
[329171050,1718149858068,-541.75930841,0.00019726,2]
[329171051,1718149858079,-500.0,0.00019726,2]
[329171052,1718149858089,-500.0,0.00019726,2]
[329171053,1718149858099,-500.0,0.00019726,2]
[329171054,1718149858109,-500.0,0.00019726,2]
[329171055,1718149858123,-232.89997657,0.00019726,2]
[329171056,1718149858133,-500.0,0.00019726,2]
[329171057,1718149858143,-500.0,0.00019726,2]
[329171058,1718149858153,-500.0,0.00019726,2]
[329171059,1718149858163,-500.0,0.00019726,2]
[329171060,1718149858175,-500.0,0.00019726,2]
[329171061,1718149858186,-213.52493226,0.00019726,2]
[329171062,1718149858198,-500.0,0.00019726,2]
[329171063,1718149858209,-418.9734864,0.00019726,2]
[329171064,1718149858219,-500.0,0.00019726,2]
[329171065,1718149858230,-500.0,0.00019726,2]
[329171066,1718149858240,-500.0,0.00019726,2]
[329171067,1718149858250,-500.0,0.00019726,2]
[329171068,1718149858260,-500.0,0.00019726,2]
[329171069,1718149858271,-500.0,0.00019726,2]
[329171070,1718149858281,-500.0,0.00019726,2]
[329171071,1718149858294,-500.0,0.00019726,2]
[329171072,1718149858304,-500.0,0.00019726,2]
[329171073,1718149858315,-619.72,0.00019726,2]
[329171074,1718149858325,-500.0,0.00019726,2]
[329171075,1718149858336,-500.0,0.00019726,2]
[329171076,1718149858346,-500.0,0.00019726,2]
[329171077,1718149858356,-500.0,0.00019726,2]
[329171078,1718149858367,-412.89557263,0.00019726,2]
[329171079,1718149858377,-500.0,0.00019726,2]
[329171080,1718149858387,-580.50176265,0.00019726,2]
[329171081,1718149858397,-500.0,0.00019726,2]
[329171082,1718149858409,-500.0,0.00019726,2]
[329171083,1718149858418,-578.74,0.00019726,2]
[329171084,1718149858429,-500.0,0.00019726,2]
[329171085,1718149858439,-575.08575379,0.00019726,2]
[329171086,1718149858449,-500.0,0.00019726,2]
[329171087,1718149858460,-500.0,0.00019726,2]
[329171088,1718149858471,-500.0,0.00019726,2]
[329171089,1718149858481,-500.0,0.00019726,2]
[329171090,1718149858491,-500.0,0.00019726,2]
[329171091,1718149858503,-500.0,0.00019726,2]
[329171092,1718149858513,-401.38,0.00019726,2]
[329171093,1718149858523,-523.60137115,0.00019726,2]
[329171094,1718149858534,-500.0,0.00019726,2]
[329171095,1718149858544,-500.0,0.00019726,2]
[329171096,1718149858555,-200.09577122,0.00019726,2]
[329171097,1718149858565,-500.0,0.00019726,2]
[329171098,1718149858575,-500.0,0.00019726,2]
[329171099,1718149858585,-500.0,0.00019726,2]
[329171100,1718149858596,-500.0,0.00019726,2]
[329171101,1718149858716,-500.0,0.00019726,2]
[329171102,1718149858727,-500.0,0.00019726,2]
[329171103,1718149858737,-500.0,0.00019726,2]
[329171104,1718149858747,-500.0,0.00019726,2]
[329171105,1718149858759,-500.0,0.00019726,2]
[329171106,1718149858769,-500.0,0.00019726,2]
[329171107,1718149858781,-437.66016732,0.00019726,2]
[329171108,1718149858791,-500.0,0.00019726,2]
[329171109,1718149858801,-500.0,0.00019726,2]
[329171110,1718149858811,-500.0,0.00019726,2]
[329171111,1718149858821,-500.0,0.00019726,2]
[329171112,1718149858831,-500.0,0.00019726,2]
[329171113,1718149858842,-500.0,0.00019726,2]
[329171114,1718149858852,-500.0,0.00019726,2]
[329171115,1718149858862,-500.0,0.00019726,2]
[329171116,1718149858872,-500.0,0.00019726,2]
[329171117,1718149858883,-500.0,0.00019726,2]
[329171118,1718149858893,-264.0991326,0.00019726,2]
[329171119,1718149858905,-500.0,0.00019726,2]
[329171120,1718149858915,-500.0,0.00019726,2]
[329171121,1718149858926,-500.0,0.00019726,2]
[329171122,1718149858956,-432.190909,0.00019726,2]
[329171123,1718149858969,-608.90024607,0.00019726,2]
[329171124,1718149858980,-500.0,0.00019726,2]
[329171125,1718149858991,-546.444611,0.00019726,2]
[329171126,1718149859001,-546.444611,0.00019726,2]
[329171127,1718149859016,-500.0,0.00019726,2]
[329171128,1718149859028,-500.0,0.00019726,2]
[329171129,1718149859041,-500.0,0.00019726,2]
[329171130,1718149859077,-151.0,0.00019726,2]
[329171131,1718149859098,-545.96,0.00019726,2]
[329171132,1718149859136,-611.39037659,0.00019726,2]
[329171133,1718149859148,-510.43548497,0.00019726,2]
[329171134,1718149859172,-3447.41,0.00019726,2]
[329171135,1718149859198,-500.0,0.00019726,2]
[329171136,1718149859239,-500.0,0.00019726,2]
[329171137,1718149859260,-500.0,0.00019726,2]
[329171138,1718149859272,-151.0,0.00019726,2]
[329171139,1718149859292,-500.0,0.00019726,2]
[329171140,1718149859310,-500.0,0.00019726,2]
[329171141,1718149859325,-500.0,0.00019726,2]
[329171142,1718149859346,-500.0,0.00019726,2]
[329171143,1718149859372,-502.65957187,0.00019726,2]
[329171144,1718149859384,-500.0,0.00019726,2]
[329171145,1718149859403,-500.0,0.00019726,2]
[329171146,1718149859415,-535.60663292,0.00019726,2]
[329171147,1718149859428,-500.0,0.00019726,2]
[329171148,1718149859455,-500.0,0.00019726,4]
[329171149,1718149859467,-500.0,0.00019726,2]
[329171150,1718149859478,-728.66,0.00019726,2]
[329171151,1718149859509,-500.0,0.00019726,2]
[329171152,1718149859520,-500.0,0.00019726,2]
[329171153,1718149859536,-2192.79,0.00019726,2]
[329171154,1718149859554,-151.0,0.00019726,2]
[329171155,1718149859573,-224.683873,0.00019726,2]
[329171156,1718149859585,-224.683873,0.00019726,2]
[329171157,1718149859595,-500.0,0.00019726,2]
[329171158,1718149859606,-500.0,0.00019726,2]
[329171159,1718149859617,-500.0,0.00019726,2]
[329171160,1718149859627,-383.398212,0.00019726,2]
[329171161,1718149859638,-500.0,0.00019726,2]
[329171162,1718149859648,-500.0,0.00019726,2]
[329171163,1718149859658,-560.12,0.00019726,2]
[329171164,1718149859669,-383.398212,0.00019726,2]
[329171165,1718149859680,-500.0,0.00019726,2]
[329171166,1718149859692,-500.0,0.00019726,2]
[329171167,1718149859703,-500.0,0.00019726,2]
[329171168,1718149859722,-500.0,0.00019726,2]
[329171169,1718149859753,-500.0,0.00019726,2]
[329171170,1718149859785,-500.0,0.00019726,2]
[329171171,1718149859798,-500.0,0.00019726,2]
[329171172,1718149859820,-500.0,0.00019726,2]
[329171173,1718149859833,-845.710927,0.00019726,2]
[329171174,1718149859843,-845.710927,0.00019726,2]
[329171175,1718149859865,-180.7908262,0.00019726,2]
[329171176,1718149859882,-500.0,0.00019726,2]
[329171177,1718149859948,-396.84229943,0.00019726,2]
[329171178,1718149859990,-1767.63,0.00019726,2]
[329171179,1718149860032,-574.28449,0.00019726,2]
[329171180,1718149860075,-512.48566568,0.00019726,2]
[329171181,1718149860098,-574.28449,0.00019726,2]
[329171182,1718149860123,-3051.19,0.00019726,2]
[329171183,1718149860141,-500.0,0.00019726,2]
[329171184,1718149860167,-500.0,0.00019726,2]
[329171185,1718149860183,-682.54,0.00019726,2]
[329171186,1718149860199,-500.0,0.00019726,2]
[329171187,1718149860214,-151.0,0.00019726,2]
[329171188,1718149860228,-500.0,0.00019726,2]
[329171189,1718149860251,-500.0,0.00019726,2]
[329171190,1718149860271,-151.0,0.00019726,2]
[329171191,1718149860295,-513.76,0.00019726,2]
[329171192,1718149860311,-1176.44,0.00019726,2]
[329171193,1718149860336,-500.0,0.00019726,2]
[329171194,1718149860364,-500.0,0.00019726,2]
[329171195,1718149860395,-500.0,0.00019726,2]
[329171196,1718149860407,-509.8123844,0.00019726,2]
[329171197,1718149860434,-753.49,0.00019726,2]
[329171198,1718149860498,-500.0,0.00019726,2]
[329171199,1718149860523,-1000.0,0.00019726,2]
[329171200,1718149860539,-1046.29291,0.00019726,2]
[329171201,1718149860561,-1000.0,0.00019726,2]
[329171202,1718149860572,-1000.0,0.00019726,2]
[329171203,1718149860586,-500.0,0.00019726,2]
[329171204,1718149860602,-1000.0,0.00019726,2]
[329171205,1718149860626,-1000.0,0.00019726,2]
[329171206,1718149860654,-1000.0,0.00019726,2]
[329171207,1718149860669,-1000.0,0.00019726,2]
[329171208,1718149860700,-1000.0,0.00019726,2]
[329171209,1718149860710,-1000.0,0.00019726,2]
[329171210,1718149860720,-1000.0,0.00019726,2]
[329171211,1718149860734,-1000.0,0.00019726,2]
[329171212,1718149860751,-265.65153462,0.00019726,2]
[329171213,1718149860771,-1000.0,0.00019726,2]
[329171214,1718149860795,-1046.29291,0.00019726,2]
[329171215,1718149860820,-1000.0,0.00019726,2]
[329171216,1718149860831,-1000.0,0.00019726,2]
[329171217,1718149860854,-1000.0,0.00019726,2]
[329171218,1718149860872,-1000.0,0.00019726,2]
[329171219,1718149860885,-1000.0,0.00019726,2]
[329171220,1718149860897,-500.0,0.00019726,2]
[329171221,1718149860908,-1000.0,0.00019726,2]
[329171222,1718149860920,-1000.0,0.00019726,2]
[329171223,1718149860932,-1000.0,0.00019726,2]
[329171224,1718149860973,-500.0,0.00019726,2]
[329171225,1718149860991,-1000.0,0.00019726,2]
[329171226,1718149861004,-792.01,0.00019726,2]
[329171227,1718149861016,-1000.0,0.00019726,2]
[329171228,1718149861037,-1000.0,0.00019726,2]
[329171229,1718149861052,-1000.0,0.00019726,2]
[329171230,1718149861070,-1000.0,0.00019726,2]
[329171231,1718149861083,-1000.0,0.00019726,2]
[329171232,1718149861105,-1000.0,0.00019726,2]
[329171233,1718149861138,-500.0,0.00019726,2]
[329171234,1718149861154,-1000.0,0.00019726,2]
[329171235,1718149861167,-1000.0,0.00019726,2]
[329171236,1718149861182,-1000.0,0.00019726,2]
[329171237,1718149861202,-1000.0,0.00019726,2]
[329171238,1718149861221,-1000.0,0.00019726,2]
[329171239,1718149861232,-1000.0,0.00019726,2]
[329171240,1718149861242,-1000.0,0.00019726,2]
[329171241,1718149861254,-1000.0,0.00019726,2]
[329171242,1718149861266,-1000.0,0.00019726,2]
[329171243,1718149861277,-1000.0,0.00019726,2]
[329171244,1718149861288,-1000.0,0.00019726,2]
[329171245,1718149861303,-556.56676684,0.00019726,2]
[329171246,1718149861321,-1000.0,0.00019726,2]
[329171247,1718149861338,-500.0,0.00019726,2]
[329171248,1718149861355,-1000.0,0.00019726,2]
[329171249,1718149861365,-1000.0,0.00019726,2]
[329171250,1718149861386,-1000.0,0.00019726,2]
[329171251,1718149861396,-1000.0,0.00019726,2]
[329171252,1718149861407,-1000.0,0.00019726,2]
[329171253,1718149861418,-1000.0,0.00019726,2]
[329171254,1718149861428,-1000.0,0.00019726,2]
[329171255,1718149861438,-1000.0,0.00019726,2]
[329171256,1718149861449,-1000.0,0.00019726,2]
[329171257,1718149861463,-1000.0,0.00019726,2]
[329171258,1718149861475,-1000.0,0.00019726,2]
[329171259,1718149861485,-1000.0,0.00019726,2]
[329171260,1718149861496,-1000.0,0.00019726,2]
[329171261,1718149861508,-1000.0,0.00019726,2]
[329171262,1718149861520,-500.0,0.00019726,2]
[329171263,1718149861531,-1000.0,0.00019726,2]
[329171264,1718149861548,-1000.0,0.00019726,2]
[329171265,1718149861561,-500.0,0.00019726,2]
[329171266,1718149861576,-500.0,0.00019726,2]
[329171267,1718149861589,-1000.0,0.00019726,2]
[329171268,1718149861600,-1000.0,0.00019726,2]
[329171269,1718149861611,-1000.0,0.00019726,2]
[329171270,1718149861621,-500.0,0.00019726,2]
[329171271,1718149861631,-463.52635171,0.00019726,2]
[329171272,1718149863326,-500.0,0.00019178,2]
[329171273,1718149863343,-142.22318542,0.00019178,2]
[329171274,1718149864051,-357.77681458,0.00019178,2]
[329171275,1718149864061,-500.0,0.00019178,2]
[329171276,1718149864082,-500.0,0.00019178,2]
[329171277,1718149864113,-500.0,0.00019178,2]
[329171278,1718149864128,-263.8325541,0.00019178,2]
[329171279,1718149864149,-500.0,0.00019178,2]
[329171280,1718149864173,-500.0,0.00019178,2]
[329171281,1718149864187,-500.0,0.00019178,2]
[329171282,1718149864206,-500.0,0.00019178,2]
[329171283,1718149864244,-288.25845685,0.00019178,2]
[329171284,1718149864256,-500.0,0.00019452,2]
[329171285,1718149864268,-500.0,0.00019452,2]
[329171286,1718149864296,-500.0,0.00019452,2]
[329171287,1718149864310,-500.0,0.00019452,2]
[329171288,1718149864329,-354.42526506,0.00019726,2]
[329171289,1718149934912,686.51550809,9.999e-05,2]
[329171292,1718149960638,266.866601,9.999e-05,2]
[329171293,1718150169830,155.01395126,9.999e-05,2]
[329171294,1718150187803,224.1650135,9.999e-05,2]
[329171296,1718150583542,2601.81194353,9.999e-05,2]
[329171297,1718150583578,3367.37691294,9.999e-05,2]
[329171299,1718150604910,155.01240099,9.999e-05,2]
[329171300,1718150703820,927.63941968,9.999e-05,2]
[329171308,1718150999568,4549.97126639,9.999e-05,2]
[329171309,1718150999610,8747.43021704,9.999e-05,2]
[329171350,1718151033590,-1984.07396026,0.00017752,2]
[329171351,1718151033601,-24900.0,0.00017753,2]
[329171352,1718151033612,-1299.0384342,0.00017963,2]
[329171353,1718151033623,-7556.65232415,0.00018057,2]
[329171354,1718151033634,-260.151566,0.00018063,2]
[329171355,1718151033648,-605.81034073,0.000189,2]
[329171356,1718151033661,-2000.0,0.00019078,2]
[329171357,1718151033672,-1302.5,0.00019155,2]
[329171358,1718151033683,-585.53724614,0.00019155,2]
[329171359,1718151033696,-510.98152513,0.00019171,2]
[329171360,1718151033707,-158.75533805,0.00019171,2]
[329171361,1718151033718,-208.24440478,0.00019171,2]
[329171362,1718151033730,-182.0047069,0.00019171,2]
[329171363,1718151033741,-155.01550153,0.00019172,2]
[329171364,1718151033751,-9975.36124938,0.00019172,2]
[329171365,1718151033762,-6836.44762647,0.00019173,2]
[329171380,1718151039247,-6294.76527857,0.00019173,2]
[329171381,1718151039260,-18983.86789056,0.00019173,2]
[329171383,1718151039272,-178.64166144,0.00019174,2]
[329171385,1718151039283,-552.39710422,0.00019174,2]
[329171387,1718151039295,-5528.04363761,0.00019174,2]
[329171388,1718151039306,-515.61728899,0.00019175,2]
[329171389,1718151039317,-1204.66016215,0.00019176,2]
[329171390,1718151039333,-692.0586622,0.00019176,2]
[329171391,1718151039344,-261.91979643,0.00019176,2]
[329171392,1718151039361,-215.86209911,0.00019176,2]
[329171394,1718151039374,-309.9070279,0.00019176,2]
[329171396,1718151039404,-309.92252015,0.00019176,2]
[329171398,1718151039424,-269.05140935,0.00019176,2]
[329171400,1718151039436,-187.66449558,0.00019176,2]
[329171402,1718151039448,-1529.1584495,0.00019176,2]
[329171404,1718151039462,-1341.79550096,0.00019176,2]
[329171406,1718151039474,-307.38416425,0.00019176,2]
[329171408,1718151039485,-190.4326803,0.00019176,2]
[329171410,1718151039496,-2764.13862909,0.00019176,2]
[329171412,1718151039509,-163.07446836,0.00019176,2]
[329171414,1718151039526,-945.46842875,0.00019176,2]
[329171416,1718151039540,-131.70246197,0.00019176,2]
[329171418,1718151039555,-4106.87000578,0.00019176,2]
[329171420,1718151039566,-155.01395126,0.00019176,2]
[329171423,1718151039581,-632.70327939,0.00019176,2]
[329171425,1718151039592,-606.592145,0.00019176,2]
[329171427,1718151039603,-411.00285074,0.00019176,2]
[329171429,1718151039616,-2824.22103634,0.00019176,2]
[329171431,1718151039636,-3699.91088993,0.00019176,2]
[329171433,1718151039651,-685.92147102,0.00019176,2]
[329171436,1718151039664,-275.59426284,0.00019177,2]
[329171437,1718151039675,-14028.54051652,0.00019178,15]
[329171439,1718151039687,-500.0,0.00019178,2]
[329171441,1718151039700,-500.0,0.00019178,2]
[329171443,1718151039712,-500.0,0.00019178,2]
[329171444,1718151039723,-500.0,0.00019178,2]
[329171445,1718151039734,-500.0,0.00019178,2]
[329171446,1718151039746,-500.0,0.00019178,2]
[329171447,1718151039757,-514.01990648,0.00019178,2]
[329171448,1718151039767,-501.9405511,0.00019178,2]
[329171449,1718151039778,-505.02012683,0.00019178,2]
[329171450,1718151039792,-500.0,0.00019178,2]
[329171451,1718151039802,-500.0,0.00019178,2]
[329171452,1718151039814,-500.0,0.00019178,2]
[329171453,1718151039825,-500.0,0.00019178,2]
[329171454,1718151039836,-500.0,0.00019178,2]
[329171456,1718151039846,-176.81494227,0.00019178,2]
[329171457,1718151039857,-299.39481098,0.00019178,2]
[329171459,1718151039868,-500.0,0.00019178,2]
[329171461,1718151039878,-500.0,0.00019178,2]
[329171462,1718151039889,-500.0,0.00019178,2]
[329171463,1718151039901,-500.0,0.00019178,2]
[329171464,1718151039911,-500.0,0.00019178,2]
[329171465,1718151039923,-500.0,0.00019178,2]